bitfinex/quotes_ETHUSD_20250913
["timestamp","ask_amount","ask_price","bid_price","bid_amount"]
[1757768621917,1.263,4716.6,4716.5,1.2617]
[1757768622216,1.263,4716.6,4716.5,0.4697]
[1757768622406,1.263,4716.6,4716.0,3.0]
[1757768622601,0.1056,4716.4,4716.1,0.63607499]
[1757768622805,0.4697,4716.3,4716.1,0.63607499]
[1757768623002,0.4697,4716.3,4716.2,0.74241101]
[1757768623206,0.4697,4716.3,4716.2,1.53441101]
[1757768624521,0.1056,4716.4,4716.3,0.792]
[1757768624833,0.5753,4716.4,4716.3,0.792]
[1757768629726,0.8636,4716.4,4716.3,0.792]
[1757768630426,0.8636,4716.4,4716.3,0.81320306]
[1757768630743,1.3438,4716.4,4716.3,0.02120306]
[1757768631238,0.8636,4716.4,4716.3,0.02120306]
[1757768634451,0.8636,4716.4,4716.2,0.792]
[1757768634615,0.3939,4716.4,4716.2,0.792]
[1757768634817,0.4293,4716.3,4716.2,0.792]
[1757768635549,0.4293,4716.3,4716.2,1.2213]
[1757768635751,0.4293,4716.3,4716.2,0.792]
[1757768635916,0.7176,4716.3,4716.2,0.792]
[1757768636121,1.1978,4716.3,4716.2,0.792]
[1757768636952,0.7176,4716.3,4716.2,0.792]
[1757768637742,0.7176,4716.3,4715.8,3.792]
[1757768637935,0.7176,4716.3,4714.1,1.0]
[1757768637936,0.4293,4716.2,4716.0,3.792]
[1757768642962,0.7685,4716.1,4715.8,0.001]
[1757768643163,1.1978,4716.1,4715.8,3.163]
[1757768643337,0.1056,4715.9,4715.8,6.163]
[1757768643540,1.3034,4715.9,4715.8,6.163]
[1757768644262,0.1056,4715.9,4715.8,6.9421]
[1757768649680,0.5349,4715.9,4715.8,6.9421]
[1757768650124,0.5349,4715.9,4715.8,4.5721]
[1757768650373,0.5349,4715.9,4715.8,8.1341]
[1757768653270,0.8232,4715.9,4715.8,8.1341]
[1757768653967,0.1056,4715.9,4715.8,8.1341]
[1757768654967,0.1056,4716.2,4716.0,0.792]
[1757768655153,0.1056,4716.2,4716.1,3.81320396]
[1757768655851,0.5504,4716.2,4716.1,3.81320396]
[1757768657890,0.8522,4716.2,4716.1,3.81320396]
[1757768658093,1.3297,4716.2,4716.1,3.81320396]
[1757768659405,1.3317,4716.2,4716.1,3.81320396]
[1757768660602,0.8542,4716.2,4716.1,3.81320396]
[1757768660775,0.5524,4716.2,4716.1,3.81320396]
[1757768661469,0.8542,4716.2,4716.1,3.81320396]
[1757768664703,1.3317,4716.2,4716.1,3.81320396]
[1757768664904,1.3317,4716.2,4716.1,3.792]
[1757768667318,1.3317,4716.2,4716.1,0.792]
[1757768667523,1.3317,4716.2,4716.1,3.792]
[1757768668286,3.45205113,4716.2,4715.8,0.001]
[1757768668526,2.12048601,4715.9,4715.8,0.001]
[1757768668892,3.34458601,4715.9,4715.8,0.001]
[1757768675633,1.2241,4715.9,4715.8,0.001]
[1757768685260,0.7466,4715.9,4715.8,0.001]
[1757768686241,0.4448,4715.9,4715.8,0.001]
[1757768688124,0.7504,4715.9,4715.8,0.001]
[1757768691072,0.4448,4715.9,4715.8,0.001]
[1757768693280,0.7574,4715.9,4715.8,0.001]
[1757768698467,0.7594,4715.9,4715.8,0.001]
[1757768699994,1.228,4715.9,4715.8,0.001]
[1757768701774,0.4468,4715.9,4715.8,0.001]
[1757768703485,0.7594,4715.9,4715.8,0.001]
[1757768707618,1.228,4715.9,4715.8,0.001]
[1757768709298,4.766,4715.9,4715.8,0.001]
[1757768709623,6.88648601,4715.9,4715.8,0.001]
[1757768717042,4.766,4715.9,4715.8,0.001]
[1757768719027,4.2974,4715.9,4715.8,0.001]
[1757768719634,4.2944,4715.9,4715.8,0.001]
[1757768720644,4.7792,4715.9,4715.8,0.001]
[1757768721544,6.89968601,4715.9,4715.8,0.001]
[1757768721859,4.7792,4715.9,4715.8,0.001]
[1757768722011,1.2442,4715.9,4715.8,0.001]
[1757768722216,4.7782,4715.9,4715.8,0.001]
[1757768722940,6.89868601,4715.9,4715.8,0.001]
[1757768723144,7.09726989,4715.9,4715.8,0.001]
[1757768724820,6.89868601,4715.9,4715.8,0.001]
[1757768734361,3.36468601,4715.9,4715.8,0.001]
[1757768734549,7.09425125,4715.9,4715.8,0.001]
[1757768734750,8.02440073,4715.9,4715.8,0.001]
[1757768739637,8.10923195,4715.9,4715.8,0.001]
[1757768743440,8.02440073,4715.9,4715.8,0.001]
[1757768743641,5.85205125,4715.9,4715.8,0.001]
[1757768743944,6.29395125,4715.9,4715.8,0.001]
[1757768744676,6.09538601,4715.9,4715.8,0.001]
[1757768745972,0.002,4715.9,4715.8,0.001]
[1757768746177,3.533,4715.9,4715.8,0.001]
[1757768746376,5.65348601,4715.9,4715.8,0.001]
[1757768746676,3.533,4715.9,4715.8,0.001]
[1757768747054,5.65348601,4715.9,4715.8,0.001]
[1757768749265,3.533,4715.9,4715.8,0.001]
[1757768750680,3.9791,4715.9,4715.8,0.001]
[1757768752783,6.09958601,4715.9,4715.8,0.001]
[1757768754049,3.9791,4715.9,4715.8,0.001]
[1757768754981,6.09958601,4715.9,4715.8,0.001]
[1757768756280,3.9791,4715.9,4715.8,0.001]
[1757768756486,3.533,4715.9,4715.8,0.001]
[1757768757376,6.09958601,4715.9,4715.8,0.001]
[1757768759471,3.9791,4715.9,4715.8,0.001]
[1757768759791,6.09958601,4715.9,4715.8,0.001]
[1757768760093,6.39648601,4715.9,4715.8,0.001]
[1757768760459,4.742,4715.9,4715.8,0.001]
[1757768760660,6.86248601,4715.9,4715.8,0.001]
[1757768769196,7.06105182,4715.9,4715.8,0.001]
[1757768770387,7.14587855,4715.9,4715.8,0.001]
[1757768771426,8.07270714,4715.9,4715.8,0.001]
[1757768772680,8.27129749,4715.9,4715.8,0.001]
[1757768773578,11.44129909,4715.9,4715.8,0.001]
[1757768773893,8.39039956,4715.9,4715.8,0.001]
[1757768776444,8.2712745,4715.9,4715.8,0.001]
[1757768781909,8.27084461,4715.9,4715.8,0.001]
[1757768793240,8.07230179,4715.9,4715.8,0.001]
[1757768793455,8.27046527,4715.9,4715.8,0.001]
[1757768794732,11.44046687,4715.9,4715.8,0.001]
[1757768795179,11.55937073,4715.9,4715.8,0.001]
[1757768795978,11.55938286,4715.9,4715.8,0.001]
[1757768796342,11.55939591,4715.9,4715.8,0.001]
[1757768800262,11.55946405,4715.9,4715.8,0.001]
[1757768801437,12.01673084,4715.9,4715.8,0.001]
[1757768802269,8.84672924,4715.9,4715.8,0.001]
[1757768802570,8.38946245,4715.9,4715.8,0.001]
[1757768802771,8.84672924,4715.9,4715.8,0.001]
[1757768803975,8.8471502,4715.9,4715.8,0.001]
[1757768804654,7.6371502,4715.9,4715.8,0.001]
[1757768804867,7.17988341,4715.9,4715.8,0.001]
[1757768805068,7.62678341,4715.9,4715.8,0.001]
[1757768808964,7.17988341,4715.9,4715.8,0.001]
[1757768810697,7.62048341,4715.9,4715.8,0.001]
[1757768811660,3.64988341,4715.9,4715.8,0.001]
[1757768811879,7.06088623,4715.9,4715.8,0.001]
[1757768812083,7.17988341,4715.9,4715.8,0.001]
[1757768812589,2.72305482,4715.9,4715.8,0.001]
[1757768812784,6.04923091,4715.9,4715.8,0.001]
[1757768815180,2.51956653,4715.9,4715.8,0.001]
[1757768815377,6.04956653,4715.9,4715.8,0.001]
[1757768819092,6.13440369,4715.9,4715.8,0.001]
[1757768819520,6.04956653,4715.9,4715.8,0.001]
[1757768820023,6.35346653,4715.9,4715.8,0.001]
[1757768820210,8.11716653,4715.9,4715.8,0.001]
[1757768823123,7.67656653,4715.9,4715.8,0.001]
[1757768824698,5.35758444,4715.9,4715.8,0.3735]
[1757768825221,5.159,4715.9,4715.8,0.3735]
[1757768826602,1.629,4715.9,4715.8,0.3735]
[1757768826904,5.158,4715.9,4715.8,0.3735]
[1757768829293,5.158,4715.9,4715.8,0.001]
[1757768832128,7.27848601,4715.9,4715.8,0.001]
[1757768832329,5.158,4715.9,4715.8,0.001]
[1757768836325,5.158,4715.9,4715.8,0.11775]
[1757768838915,5.157,4715.9,4715.8,0.11775]
[1757768839715,3.53,4715.9,4715.8,0.11775]
[1757768841322,0.002,4715.9,4715.8,0.11775]
[1757768841529,3.53,4715.9,4715.8,0.11775]
[1757768842724,0.002,4715.9,4715.8,0.11775]
[1757768842924,3.53,4715.9,4715.8,0.11775]
[1757768845440,3.53,4715.9,4715.8,0.001]
[1757768850087,0.002,4715.9,4715.8,0.001]
[1757768851282,1.236,4715.9,4715.8,0.001]
[1757768851649,0.4552,4715.9,4715.8,0.001]
[1757768854658,0.002,4715.9,4715.8,0.001]
[1757768859018,3.35648601,4715.9,4715.8,0.001]
[1757768859306,4.50098031,4715.9,4715.8,0.001]
[1757768860572,3.5550754,4715.9,4715.8,0.001]
[1757768864988,1.236,4715.9,4715.8,0.001]
[1757768865511,3.35648601,4715.9,4715.8,0.001]
[1757768868214,1.236,4715.9,4715.8,0.001]
[1757768868391,3.35648601,4715.9,4715.8,0.001]
[1757768870834,1.236,4715.9,4715.8,0.001]
[1757768870985,3.35648601,4715.9,4715.8,0.001]
[1757768871888,1.236,4715.9,4715.8,0.001]
[1757768872727,3.35648601,4715.9,4715.8,0.001]
[1757768883134,3.55503314,4715.9,4715.8,0.001]
[1757768884940,3.63986311,4715.9,4715.8,0.001]
[1757768886054,8.10054392,4715.9,4715.8,0.001]
[1757768886354,4.93005139,4715.9,4715.8,0.001]
[1757768891154,4.46185139,4715.9,4715.8,0.001]
[1757768891358,3.17166311,4715.9,4715.8,0.001]
[1757768895238,3.649566,4715.9,4715.8,0.001]
[1757768896547,3.84802543,4715.9,4715.8,0.001]
[1757768904892,3.84797778,4715.9,4715.8,0.001]
[1757768906488,3.8479922,4715.9,4715.8,0.001]
[1757768911613,4.96043216,4715.9,4715.8,0.001]
[1757768914096,4.96051831,4715.9,4715.8,0.001]
[1757768919119,5.07966173,4715.9,4715.8,0.001]
[1757768920029,5.53703336,4715.9,4715.8,0.001]
[1757768920417,5.07966173,4715.9,4715.8,0.001]
[1757768920620,5.53693097,4715.9,4715.8,0.001]
[1757768922443,5.07966173,4715.9,4715.8,0.001]
[1757768941584,8.07966173,4715.9,4715.8,0.001]
[1757768941788,8.5366341,4715.9,4715.8,0.001]
[1757768945366,8.5366341,4715.9,4715.5,0.001]
[1757768945367,3.17049253,4715.3,4714.8,0.001]
[1757768945545,2.12093575,4714.9,4714.8,0.001]
[1757768945734,6.33339812,4714.9,4714.8,0.001]
[1757768946041,10.96977065,4714.9,4714.8,0.001]
[1757768946228,11.42702764,4714.9,4714.8,0.001]
[1757768946631,11.42673749,4714.9,4714.8,0.001]
[1757768946854,13.35010946,4714.9,4714.8,0.001]
[1757768948131,8.12607371,4714.9,4714.8,0.001]
[1757768948390,8.12607371,4714.9,4714.8,0.3735]
[1757768948391,2.31927186,4714.9,4714.8,0.3735]
[1757768948663,2.31927186,4714.9,4714.8,0.001]
[1757768948837,2.31927186,4714.9,4714.8,0.3735]
[1757768950269,2.12093575,4714.9,4714.8,0.3735]
[1757768950468,2.31913894,4714.9,4714.8,0.3735]
[1757768952448,2.31913894,4714.9,4714.8,0.001]
[1757768955451,2.12093575,4714.9,4714.8,0.001]
[1757768956179,2.31914143,4714.9,4714.8,0.001]
[1757768956371,2.12093575,4714.9,4714.8,0.001]
[1757768957982,2.31913945,4714.9,4714.8,0.001]
[1757768960056,2.31914846,4714.9,4714.8,0.001]
[1757768971088,5.64393575,4714.9,4714.8,0.3735]
[1757768971395,3.523,4714.9,4714.8,0.3735]
[1757768972158,5.64393575,4714.9,4714.8,0.3735]
[1757768972672,3.523,4714.9,4714.8,0.3735]
[1757768975309,3.523,4714.9,4714.8,0.746]
[1757768976212,3.523,4715.0,4714.8,0.746]
[1757768976812,3.523,4715.0,4714.8,0.3735]
[1757768977790,3.523,4715.0,4714.8,0.001]
[1757768978409,3.523,4715.0,4714.9,0.3735]
[1757768979895,5.64389077,4715.0,4714.9,0.3735]
[1757768980123,3.523,4715.0,4714.9,0.3735]
[1757768984299,5.64389077,4715.0,4714.9,0.3735]
[1757768984498,6.09509077,4715.0,4714.9,0.3735]
[1757768985005,3.9742,4715.0,4714.9,0.3735]
[1757768986500,3.523,4715.0,4714.9,0.3735]
[1757768986924,3.9888,4715.0,4714.9,0.3735]
[1757768987329,6.10969077,4715.0,4714.9,0.3735]
[1757768989248,6.41569077,4715.0,4714.9,0.3735]
[1757768989949,4.2948,4715.0,4714.9,0.3735]
[1757768990925,3.9888,4715.0,4714.9,0.3735]
[1757768992139,3.523,4715.0,4714.9,0.3735]
[1757768993464,3.523,4715.2,4714.9,0.3735]
[1757768997561,0.002,4715.3,4714.9,0.3735]
[1757768998164,0.1076,4715.3,4715.0,0.3937089]
[1757768998467,0.1076,4715.3,4715.1,0.3725]
[1757768998667,0.1076,4715.3,4715.2,0.021208]
[1757768998960,0.1076,4715.3,4715.2,0.394708]
[1757769000930,0.002,4715.3,4715.2,1.559208]
[1757769001167,0.002,4715.3,4715.2,1.8779288]
[1757769001464,0.002,4715.3,4715.2,1.8567208]
[1757769002055,0.002,4715.3,4715.2,8.3999288]
[1757769002232,0.002,4715.3,4715.2,8.3787208]
[1757769006601,1.2305,4715.3,4715.2,0.3735]
[1757769008102,0.7317,4715.3,4715.2,0.3735]
[1757769012755,0.7317,4715.3,4715.2,3.3735]
[1757769012955,0.7317,4715.3,4715.2,3.394708]
[1757769013650,0.7317,4715.3,4715.2,4.2491788]
[1757769013651,0.002,4715.3,4715.2,4.2491788]
[1757769015489,0.002,4715.3,4715.2,4.7711788]
[1757769015690,0.002,4715.3,4715.2,4.7499708]
[1757769018180,0.4454,4715.3,4715.2,4.7499708]
[1757769018912,1.2075,4715.3,4715.2,4.7499708]
[1757769019070,1.2075,4715.3,4715.2,3.8955]
[1757769019460,0.7524,4715.3,4715.2,3.8955]
[1757769019904,0.002,4715.3,4715.2,3.8955]
[1757769021079,0.4454,4715.3,4715.2,3.8955]
[1757769024305,0.4454,4715.3,4715.2,0.3735]
[1757769024477,0.4454,4715.3,4715.2,6.8955]
[1757769030615,0.002,4715.3,4715.2,7.74795]
[1757769034399,0.002,4715.3,4715.2,4.22595]
[1757769034600,0.7728,4715.3,4715.2,7.74795]
[1757769034936,1.2325,4715.3,4715.2,7.74795]
[1757769035931,0.7689,4715.3,4715.2,7.74795]
[1757769037637,0.4617,4715.3,4715.2,7.74795]
[1757769037844,0.3092,4715.3,4715.2,4.22595]
[1757769038012,0.7689,4715.3,4715.2,7.768158]
[1757769038333,0.7689,4715.3,4715.2,7.74695]
[1757769040240,1.2325,4715.3,4715.2,7.74695]
[1757769040439,1.2325,4715.3,4715.2,3.3735]
[1757769040603,1.2325,4715.3,4715.1,3.522]
[1757769040935,0.9233,4715.2,4715.1,0.001]
[1757769041358,1.2305,4715.2,4715.1,0.001]
[1757769042055,3.35130081,4715.2,4715.1,0.001]
[1757769042414,1.2305,4715.2,4715.1,0.001]
[1757769042620,3.35130081,4715.2,4715.1,0.001]
[1757769043749,3.89869822,4715.2,4715.1,0.001]
[1757769052512,7.42069822,4715.2,4715.1,0.001]
[1757769066490,7.61886934,4715.2,4715.1,0.001]
[1757769070866,7.61911079,4715.2,4715.1,0.001]
[1757769074303,8.04445718,4715.2,4715.1,0.001]
[1757769077424,7.58085718,4715.2,4715.1,0.001]
[1757769077623,8.04485718,4715.2,4715.1,0.001]
[1757769078326,7.84644461,4715.2,4715.1,0.001]
[1757769078895,3.86044461,4715.2,4715.1,0.001]
[1757769079089,7.07524461,4715.2,4715.1,0.001]
[1757769079493,7.38394461,4715.2,4715.1,0.001]
[1757769080634,7.58242234,4715.2,4715.1,0.001]
[1757769080820,7.84794461,4715.2,4715.1,0.001]
[1757769081018,8.04642234,4715.2,4715.1,0.001]
[1757769081824,7.84794461,4715.2,4715.1,0.001]
[1757769082411,8.04643483,4715.2,4715.1,0.001]
[1757769084932,2.31929103,4715.2,4715.1,0.001]
[1757769085130,5.84129103,4715.2,4715.1,0.001]
[1757769092204,5.64280081,4715.2,4715.1,0.001]
[1757769092407,5.84125344,4715.2,4715.1,0.001]
[1757769093512,5.84125273,4715.2,4715.1,0.001]
[1757769096640,3.72045192,4715.2,4715.1,0.001]
[1757769096845,3.7204458,4715.2,4715.1,0.001]
[1757769097225,5.84124661,4715.2,4715.1,0.001]
[1757769097441,3.522,4715.2,4715.1,0.001]
[1757769098333,5.64280081,4715.2,4715.1,0.001]
[1757769100247,0.002,4715.3,4715.1,0.001]
[1757769100554,3.523,4715.3,4715.1,0.001]
[1757769101722,0.002,4715.3,4715.2,1.1645]
[1757769102052,0.002,4715.8,4715.3,0.792]
[1757769102222,0.002,4715.8,4715.3,1.1645]
[1757769102547,0.002,4715.8,4715.5,0.792]
[1757769103128,0.002,4715.8,4715.6,0.3725]
[1757769105160,0.002,4715.8,4715.7,0.3725]
[1757769105327,0.002,4715.8,4715.7,0.48895]
[1757769106432,0.002,4715.8,4715.7,0.3725]
[1757769110266,0.002,4715.8,4715.7,0.39370575]
[1757769112560,0.002,4715.8,4715.7,0.02120575]
[1757769113141,0.002,4715.8,4715.7,1.18570575]
[1757769113556,0.002,4715.8,4715.7,1.2908731]
[1757769113764,0.002,4715.8,4715.7,1.72844105]
[1757769115036,0.002,4715.8,4715.7,6.35544105]
[1757769115241,0.002,4715.8,4715.7,6.3342353]
[1757769118583,0.002,4715.8,4715.7,9.8562353]
[1757769119155,0.002,4715.8,4715.7,9.4837353]
[1757769119359,0.002,4716.3,4715.8,3.792]
[1757769119575,0.002,4716.3,4716.0,0.792]
[1757769120400,0.002,4716.3,4716.1,7.321]
[1757769120908,0.002,4716.3,4716.1,7.6935]
[1757769121109,0.002,4716.8,4716.2,3.792]
[1757769121310,0.002,4716.8,4716.5,0.792]
[1757769121601,0.002,4716.8,4716.3,30.02120306]
[1757769121602,0.002,4716.8,4716.6,11.10179834]
[1757769121813,0.002,4716.8,4716.6,8.947]
[1757769121971,0.002,4716.8,4716.6,9.3195]
[1757769123170,0.002,4716.8,4716.6,9.4251]
[1757769125576,0.002,4716.8,4716.6,9.4241]
[1757769126802,0.002,4716.8,4716.6,9.0516]
[1757769126995,0.002,4716.8,4716.6,9.99301]
[1757769130170,0.002,4716.8,4716.6,6.46701]
[1757769130375,0.002,4716.8,4716.6,9.99201]
[1757769131434,0.002,4716.8,4716.6,9.88641]
[1757769135695,0.4367,4716.7,4716.6,9.88641]
[1757769136421,0.002,4716.7,4716.6,9.88641]
[1757769141222,0.002,4716.7,4716.6,9.99201]
[1757769142214,0.002,4716.7,4716.6,9.88641]
[1757769149915,0.4367,4716.7,4716.6,9.88641]
[1757769152128,0.4367,4716.7,4716.6,9.99201]
[1757769153015,0.4367,4716.7,4716.6,9.99301]
[1757769159343,0.002,4716.7,4716.6,9.99301]
[1757769160221,0.4733,4717.1,4716.7,3.792]
[1757769160420,0.002,4717.1,4717.0,0.792]
[1757769160648,0.002,4717.1,4717.0,7.4166]
[1757769160822,0.7291,4717.1,4717.0,7.4166]
[1757769161021,1.2004,4717.1,4717.0,7.4166]
[1757769161479,1.2004,4717.1,4717.0,9.0426]
[1757769161654,1.2004,4717.1,4717.0,10.0468301]
[1757769170447,0.7291,4717.1,4717.0,9.9412301]
[1757769170771,0.002,4717.1,4717.0,9.9412301]
[1757769171453,0.9274,4717.4,4717.0,9.9412301]
[1757769171454,0.4358,4717.6,4717.2,0.792]
[1757769171658,0.4358,4717.5,4717.4,0.792]
[1757769171849,0.4358,4717.5,4717.4,4.311]
[1757769172867,0.4358,4717.5,4717.4,4.33219811]
[1757769173068,0.002,4717.6,4717.5,3.792]
[1757769173284,0.4378,4717.6,4717.5,3.792]
[1757769173482,0.4378,4717.6,4717.5,4.64370996]
[1757769173652,0.4378,4717.6,4717.5,4.6225123]
[1757769174168,0.7262,4717.6,4717.5,4.6225123]
[1757769176786,1.2178,4717.6,4717.5,4.6225123]
[1757769178976,1.2178,4717.6,4717.5,5.1415123]
[1757769180357,1.2178,4717.6,4717.5,5.2471123]
[1757769182754,0.7262,4717.6,4717.5,5.2471123]
[1757769184611,0.002,4717.6,4717.5,8.1415123]
[1757769186208,0.4378,4717.6,4717.5,8.1415123]
[1757769186703,0.002,4717.6,4717.5,8.1415123]
[1757769187797,0.4378,4717.6,4717.5,8.1415123]
[1757769189306,0.7262,4717.6,4717.5,8.1415123]
[1757769193294,0.4378,4718.1,4717.5,8.1415123]
[1757769193514,0.4378,4718.1,4717.6,3.85994503]
[1757769193688,0.4378,4718.1,4717.6,1.35354503]
[1757769194505,0.4378,4718.1,4717.6,4.45914503]
[1757769194709,0.002,4718.1,4717.6,4.43794782]
[1757769194909,0.4358,4717.9,4717.6,4.43794782]
[1757769195105,0.4378,4717.7,4717.6,4.43794782]
[1757769196919,0.4378,4717.7,4717.6,4.33234782]
[1757769201404,0.7379,4717.7,4717.6,4.33234782]
[1757769202223,0.7379,4717.7,4717.6,1.33234782]
[1757769202438,1.1961,4717.7,4717.6,4.0116]
[1757769203918,1.1961,4717.7,4717.6,3.518]
[1757769204124,1.1961,4717.7,4717.6,6.518]
[1757769207213,1.1961,4717.7,4717.6,6.519]
[1757769207802,0.3021,4717.7,4717.6,6.519]
[1757769208013,0.002,4717.7,4717.6,8.03704216]
[1757769208326,0.002,4717.7,4717.6,8.33914216]
[1757769215100,0.7308,4717.7,4717.6,8.33914216]
[1757769215304,0.7308,4717.7,4717.6,4.82114216]
[1757769215503,0.4307,4717.7,4717.6,8.33914216]
[1757769217330,0.002,4717.7,4717.6,8.33914216]
[1757769217930,0.002,4717.7,4717.6,8.44474216]
[1757769224651,0.4307,4717.7,4717.6,8.44474216]
[1757769224845,0.002,4717.7,4717.6,8.44474216]
[1757769225635,0.002,4718.1,4717.7,3.792]
[1757769225833,0.002,4718.1,4718.0,0.792]
[1757769226031,0.002,4718.1,4718.0,9.06279542]
[1757769226275,0.002,4718.1,4718.0,9.0416]
[1757769226953,0.002,4718.1,4718.0,9.12635752]
[1757769227459,0.4747,4718.1,4718.0,9.12635752]
[1757769227670,0.4747,4718.1,4718.0,10.12726569]
[1757769228533,0.002,4718.1,4718.0,10.12726569]
[1757769229667,0.4697,4718.1,4718.0,10.12626569]
[1757769230361,0.002,4718.1,4718.0,10.12626569]
[1757769230838,0.7815,4718.1,4718.0,6.60926569]
[1757769231030,1.2492,4718.1,4718.0,10.12626569]
[1757769232233,1.2492,4718.1,4718.0,6.60926569]
[1757769232439,1.2492,4718.1,4718.0,10.12626569]
[1757769237975,1.2492,4718.1,4718.0,6.60926569]
[1757769238182,1.2492,4718.1,4718.0,10.12626569]
[1757769239372,1.2492,4718.1,4718.0,6.60926569]
[1757769239580,1.2492,4718.1,4718.0,10.12626569]
[1757769247076,0.7854,4718.1,4718.0,10.12626569]
[1757769248072,1.2492,4718.1,4718.0,10.12626569]
[1757769252074,0.4638,4719.3,4718.2,0.792]
[1757769252292,1.626,4720.9,4718.4,3.792]
[1757769252293,0.4677,4718.6,4718.4,3.792]
[1757769252483,0.002,4718.8,4718.6,0.792]
[1757769252796,0.002,4718.8,4718.5,3.0]
[1757769252959,0.002,4718.8,4718.6,3.517]
[1757769253486,1.2492,4718.7,4718.6,3.60175375]
[1757769254154,1.2492,4718.7,4718.6,3.517]
[1757769255768,1.2492,4718.7,4718.5,3.0]
[1757769255987,0.3177,4718.7,4718.6,3.516]
[1757769256651,1.2223,4718.7,4718.6,3.516]
[1757769258959,1.2223,4718.7,4718.6,6.516]
[1757769259692,1.2223,4718.7,4718.6,3.0]
[1757769259860,1.2223,4718.7,4718.6,6.516]
[1757769261879,1.2223,4718.7,4718.6,6.517]
[1757769264266,1.2223,4718.7,4718.6,3.001]
[1757769264464,1.2223,4718.7,4718.6,6.517]
[1757769268504,1.2223,4718.7,4718.6,3.001]
[1757769268801,1.35569,4718.7,4718.6,3.001]
[1757769269573,1.35569,4718.7,4718.6,0.001]
[1757769269778,1.35569,4718.7,4718.6,3.001]
[1757769273889,1.2223,4718.7,4718.6,3.001]
[1757769274696,1.2223,4718.7,4718.6,0.001]
[1757769274897,1.2223,4718.7,4718.6,3.001]
[1757769277618,1.2223,4718.7,4718.6,0.001]
[1757769277919,1.2223,4718.7,4718.6,3.001]
[1757769279631,0.002,4718.7,4718.6,3.001]
[1757769279997,0.4477,4718.7,4718.6,3.001]
[1757769280197,0.7416,4718.7,4718.6,3.001]
[1757769284329,0.002,4718.7,4718.6,3.001]
[1757769284709,0.4477,4718.7,4718.6,3.001]
[1757769289546,0.002,4718.7,4718.6,3.001]
[1757769289925,0.1076,4718.7,4718.6,3.001]
[1757769292817,0.5504,4718.7,4718.6,3.001]
[1757769295842,0.853,4718.7,4718.6,3.001]
[1757769299970,0.5504,4718.7,4718.6,3.001]
[1757769300938,0.853,4718.7,4718.6,3.001]
[1757769303062,0.5504,4718.7,4718.6,3.001]
[1757769304141,0.853,4718.7,4718.6,3.001]
[1757769306154,0.5504,4718.7,4718.6,3.001]
[1757769309751,0.853,4718.7,4718.6,3.001]
[1757769310581,3.61495775,4718.7,4718.6,0.001]
[1757769310949,4.4492331,4718.7,4718.6,0.001]
[1757769312699,4.64759222,4718.7,4718.6,0.001]
[1757769313968,4.25077257,4718.7,4718.6,0.001]
[1757769314167,5.43924333,4718.7,4718.6,0.001]
[1757769315263,5.43902572,4718.7,4718.6,0.001]
[1757769317404,5.24079034,4718.7,4718.6,0.001]
[1757769318900,8.75679034,4718.7,4718.6,0.001]
[1757769319199,8.95502572,4718.7,4718.6,0.001]
[1757769320130,12.07368218,4718.7,4718.6,0.001]
[1757769320522,12.07313739,4718.7,4718.6,0.001]
[1757769320918,2.11990163,4717.2,4717.1,0.001]
[1757769321118,6.05987513,4717.2,4717.1,0.001]
[1757769321324,7.24957513,4717.2,4717.1,0.001]
[1757769322140,7.33438153,4717.2,4717.1,0.001]
[1757769324149,8.32383383,4717.2,4717.1,0.001]
[1757769325195,8.32383383,4717.2,4716.8,0.001]
[1757769325432,8.32383383,4717.2,4716.0,0.001]
[1757769325433,2.12021626,4716.5,4716.0,0.001]
[1757769325637,5.63721626,4716.5,4716.0,0.001]
[1757769325936,6.87791626,4716.5,4716.0,0.001]
[1757769326114,6.96273867,4716.5,4716.0,0.001]
[1757769329323,6.96273867,4716.5,4715.6,0.001]
[1757769329324,2.12057594,4715.7,4715.6,0.001]
[1757769329514,5.63757594,4715.7,4715.6,0.001]
[1757769329838,8.50427594,4715.7,4715.6,0.001]
[1757769330047,8.58911598,4715.7,4715.6,0.001]
[1757769336615,7.26054004,4715.7,4715.4,1e-08]
[1757769336836,2.12066588,4715.5,4715.4,1e-08]
[1757769337038,5.63866588,4715.5,4715.4,1e-08]
[1757769337214,7.75621186,4715.5,4715.4,1e-08]
[1757769337420,7.95285885,4715.5,4715.4,1e-08]
[1757769338017,2.12093575,4714.9,4714.8,0.001]
[1757769338222,6.64302933,4714.9,4714.8,0.001]
[1757769338417,7.62437089,4714.9,4714.8,0.001]
[1757769338651,8.08037089,4714.9,4714.8,0.001]
[1757769338956,8.45287089,4714.9,4714.8,0.001]
[1757769343151,8.64951804,4714.9,4714.8,0.001]
[1757769343939,11.64951804,4714.9,4714.8,0.001]
[1757769346465,12.10354926,4714.9,4714.8,0.001]
[1757769346666,11.65051804,4714.9,4714.8,0.001]
[1757769348265,12.1037771,4714.9,4714.8,0.001]
[1757769349165,11.65051804,4714.9,4714.8,0.001]
[1757769349375,10.71481804,4714.9,4714.8,0.001]
[1757769349579,11.14311804,4714.9,4714.8,0.001]